{"text_format":"1","workbook":"xlsx","n_sheets":2,"sheets":["Pasiūlymas","Subtiekėjai ir priedai"],"not_rendered":{"charts":0,"images":0,"macros":1,"external_links":0,"defined_names":0,"comments":0,"pivot_tables":0},"unopened":[],"bounds":{"document_bytes":16777216,"sheet_cells":100000,"rows_first":2000,"rows_last":500,"rows_between":2000,"halvings":0,"cell_chars":16384,"cell_head_chars":4096},"cells_cut":0,"cells_raw":0,"read":"whole","date_system":"1900"}

{"sheet":"Pasiūlymas","index":0,"n_rows":280,"n_cols":9,"rows_kept":280,"cut":false,"hidden":false,"merged":[[29,0,29,2],[29,3,29,5],[11,0,11,1],[11,2,11,5],[12,0,12,1],[12,2,12,5],[13,0,13,1],[13,2,13,5],[14,0,14,1],[14,2,14,5],[15,0,15,1],[15,2,15,5],[16,0,16,1],[16,2,16,5],[17,0,17,1],[17,2,17,5],[18,0,18,1],[18,2,18,5],[23,0,23,5],[19,0,19,1],[20,0,20,1],[19,2,19,5],[20,2,20,5],[22,0,22,5],[27,0,27,5],[28,0,28,5],[24,0,24,5],[25,0,25,5],[26,0,26,5]]}
[]
["PIRKIMO SĄLYGŲ PRIEDAS \"PASIŪLYMO FORMA\""]
[]
["KONSERVUOTI MAISTO PRODUKTAI, SULTYS"]
[]
["Kam:","Gynybos resursų agentūra prie KAM"]
[]
["Data:","2022-11-28"]
["Nr.:","VP22-11-28/1"]
["Vieta:","Kaunas"]
[]
["Tiekėjo pavadinimas / Ūkio subjektų grupės nariai:",null,"UAB „Officeday“"]
["Tiekėjo kodas (-ai):",null,124931353]
["Tiekėjo adresas (-ai):"]
["Tiekėjo PVM mokėtojo kodas(-ai):"]
["Tiekėjo / Ūkio subjektų grupės atsakingo partnerio sąskaitos numeris, banko pavadinimas ir banko kodas (-ai):"]
["Asmens atsakingo už pasiūlymą vardas, pavardė:"]
["Asmens atsakingo už pasiūlymą telefono numeris, el. pašto adresas:"]
["Tiekėjo / Ūkio subjektų grupės, laimėjimo atveju, pasirašančio sutartį asmens vardas, pavardė, pareigos:"]
["Tiekėjo / Ūkio subjektų grupės, laimėjimo atveju, už sutarties vykdymą atsakingo asmens vardas, pavardė, telefono numeris, elektroninio pašto adresas:"]
["(1) Tiekėjo / Ūkio subjektų grupės narių, (2) ūkio subjektų, kurių pajėgumais remiamasi, ir (3) jei pašalinimo pagrindai taikomi visiems subtiekėjams - subtiekėjų, kolegialaus priežiūros organo (Stebėtojų tarybos) ir (ar) kolegialaus valdymo organo (Valdybos) narių sąrašas (jei sudaryta) ir (ar) asmuo, kuriam suteikti VPĮ 46 str. 2 d. 2 p. numatyti įgaliojimai",null,null,null,null,null,{"$f":"IF((SUMPRODUCT(--(C21=\"\"))>0), \"Privaloma užpildyti, kai taikomi pašalinimo pagrindai\", \"\")","v":"Privaloma užpildyti, kai taikomi pašalinimo pagrindai"}]
[]
["Tiekėjo patvirtinimai:"]
["1. Šiuo pasiūlymu pažymime, kad sutinkame su visomi pirkimo sąlygomis, nustatytomis:"]
["1.1. viešojo pirkimo dokumentuose"]
["1.2. kituose pirkimo dokumentuose (jų paaiškinimuose, papildymuose)."]
["2. Patvirtiname, kad informacija ir duomenys, pateikti pasiūlyme, yra teisingi ir apima viską, ko reikia tinkamam sutarties įvykdymui"]
["3. Patvirtiname, kad jei pasiūlyme nenurodyti kolegialaus priežiūros/valdymo organų nariai, šie organai juridiniuose asmenyse nėra sudaryti (taikoma, kai pirkimo dokumentuose nustatyti pašalinimo pagrindai)."]
["4. Pasiūlymas galioja iki termino, nustatyto pirkimo dokumentuose."]
["5. Tais atvejais, kai pagal galiojančius teisės aktus tiekėjui nereikia mokėti PVM, jis nurodo priežastis, dėl kurių PVM nemoka:"]
["6. Tiekėjas kainas pateikia, nurodydamas ne daugiau skaičių po kablelio, nei leidžiama pirkimo dokumentuose."]
["1. DALIS","UKRAINIETIŠKI BARŠČIAI (KONSERVAI)"]
[]
[]
[]
[]
[]
[]
[]
[]
[]
[]
[]
[]
[]
[]
[]
[]
[]
[]
[]
[]
[]
[]
[]
[]
[]
[]
[]
[]
[]
[]
[]
[]
[]
[]
[]
[]
[]
[]
[]
[]
[]
[]
[]
[]
[]
[]
[]
[]
[]
[]
[]
[]
[]
[]
[]
[]
[]
[]
[]
[]
[]
[]
[]
[]
[]
[]
[]
[]
[]
[]
[]
["7. DALIS","KONSERVUOTOS AGURKŲ SALOTOS"]
[]
["Tiekėjo pasiūlymas:"]
["Nr.","Pavadinimas","Kiekis","Mato vienetas","Kaina su PVM","Suma su PVM","Gamintojas","Kilmės šalis","Prekės pavadinimas"]
["7.","Konservuotos agurkų salotos"]
["7.1.","Konservuotos agurkų salotos",5147,"kg",1.48,{"$f":"IF(ISBLANK(E109),\"\", PRODUCT(C109,E109))","v":7617.5599999999995},"P.P.H.U. \"Frutico\", pagaminta pagal UAB \"Sanitex\" užsakymą/Pardavėjas UAB \"Sanitex\"","Lenkija","Švediškos salotos"]
[null,null,null,null,"Suma be PVM",{"$f":"IF(OR(F111=\"\",F111=\"Tiekėjo text\"), \"\", F112-F111)","v":6295.5041322314046}]
[null,null,"Taikomas PVM dydis (%)",21,"PVM suma",{"$f":"IF(OR(F112=\"\", D111=\"\"), \"\", PRODUCT(D111,F112)/100/SUM(1, D111/100))","v":1322.0558677685949},{"$f":"IF(D111=\"\", \"Nurodykite taikomą PVM dydį\", \"\")","v":""}]
[null,null,null,null,"Suma su PVM",{"$f":"IF((SUMPRODUCT(--(F109:F109=\"\"))>0), \"\", SUM(F109:F109))","v":7617.5599999999995},{"$f":"IF((SUMPRODUCT(--(F109:F109=\"\"))>0), \"Neužpildytos visų objektų kainos\", \"\")","v":""}]
[]
[]
[]
["8. DALIS","KONSERVUOTI AGURKAI (PJAUSTYTI)"]
[]
["Tiekėjo pasiūlymas:"]
["Nr.","Pavadinimas","Kiekis","Mato vienetas","Kaina su PVM","Suma su PVM","Gamintojas","Kilmės šalis","Prekės pavadinimas"]
["8.","Konservuoti agurkai (pjaustyti)"]
["8.1.","Konservuoti agurkai (pjaustyti)",7466,"kg",1.98,{"$f":"IF(ISBLANK(E121),\"\", PRODUCT(C121,E121))","v":14782.68},"Wasta Konserven Fischl GmbH & Co.","Vokietija","Marinuotų agurkėlių griežinėliai"]
[null,null,null,null,"Suma be PVM",{"$f":"IF(OR(F123=\"\",F123=\"Tiekėjo text\"), \"\", F124-F123)","v":12217.090909090908}]
[null,null,"Taikomas PVM dydis (%)",21,"PVM suma",{"$f":"IF(OR(F124=\"\", D123=\"\"), \"\", PRODUCT(D123,F124)/100/SUM(1, D123/100))","v":2565.5890909090913},{"$f":"IF(D123=\"\", \"Nurodykite taikomą PVM dydį\", \"\")","v":""}]
[null,null,null,null,"Suma su PVM",{"$f":"IF((SUMPRODUCT(--(F121:F121=\"\"))>0), \"\", SUM(F121:F121))","v":14782.68},{"$f":"IF((SUMPRODUCT(--(F121:F121=\"\"))>0), \"Neužpildytos visų objektų kainos\", \"\")","v":""}]
[]
[]
[]
["9. DALIS","KONSERVUOTI POMIDORAI"]
[]
["Tiekėjo pasiūlymas:"]
["Nr.","Pavadinimas","Kiekis","Mato vienetas","Kaina su PVM","Suma su PVM","Gamintojas","Kilmės šalis","Prekės pavadinimas"]
["9.","Konservuoti pomidorai"]
["9.1.","Konservuoti pomidorai",40406,"kg",1.67,{"$f":"IF(ISBLANK(E133),\"\", PRODUCT(C133,E133))","v":67478.02},"WaldiBen Sp. z o.o., pagaminta pagal UAB \"Sanitex\" užsakymą/Pardavėjas UAB \"Sanitex\"","Lenkija","Marinuoti pomidorai, žali\nMarinuoti pomidorai, raudoni"]
[null,null,null,null,"Suma be PVM",{"$f":"IF(OR(F135=\"\",F135=\"Tiekėjo text\"), \"\", F136-F135)","v":55766.958677685951}]
[null,null,"Taikomas PVM dydis (%)",21,"PVM suma",{"$f":"IF(OR(F136=\"\", D135=\"\"), \"\", PRODUCT(D135,F136)/100/SUM(1, D135/100))","v":11711.061322314052},{"$f":"IF(D135=\"\", \"Nurodykite taikomą PVM dydį\", \"\")","v":""}]
[null,null,null,null,"Suma su PVM",{"$f":"IF((SUMPRODUCT(--(F133:F133=\"\"))>0), \"\", SUM(F133:F133))","v":67478.02},{"$f":"IF((SUMPRODUCT(--(F133:F133=\"\"))>0), \"Neužpildytos visų objektų kainos\", \"\")","v":""}]
[]
[]
[]
["10. DALIS","KONSERVUOTOS PUPELĖS POMIDORŲ PADAŽE"]
[]
["Tiekėjo pasiūlymas:"]
["Nr.","Pavadinimas","Kiekis","Mato vienetas","Kaina su PVM","Suma su PVM","Gamintojas","Kilmės šalis","Prekės pavadinimas"]
["10.","Konservuotos pupelės pomidorų padaže"]
["10.1.","Konservuotos pupelės pomidorų padaže",3792,"kg",1.83,{"$f":"IF(ISBLANK(E145),\"\", PRODUCT(C145,E145))","v":6939.3600000000006},"SAC Societa' Alimentari Carmagnolese SAC S.p.A, pagaminta pagal UAB \"Sanitex\" užsakymą/Pardavėjas UAB \"Sanitex\"","Italija","Baltosios pupelės, konservuotos, pomidorų padaže"]
[null,null,null,null,"Suma be PVM",{"$f":"IF(OR(F147=\"\",F147=\"Tiekėjo text\"), \"\", F148-F147)","v":5735.008264462811}]
[null,null,"Taikomas PVM dydis (%)",21,"PVM suma",{"$f":"IF(OR(F148=\"\", D147=\"\"), \"\", PRODUCT(D147,F148)/100/SUM(1, D147/100))","v":1204.3517355371901},{"$f":"IF(D147=\"\", \"Nurodykite taikomą PVM dydį\", \"\")","v":""}]
[null,null,null,null,"Suma su PVM",{"$f":"IF((SUMPRODUCT(--(F145:F145=\"\"))>0), \"\", SUM(F145:F145))","v":6939.3600000000006},{"$f":"IF((SUMPRODUCT(--(F145:F145=\"\"))>0), \"Neužpildytos visų objektų kainos\", \"\")","v":""}]
[]
[]
[]
[]
[]
[]
[]
[]
[]
[]
[]
[]
[]
[]
[]
[]
[]
[]
[]
[]
[]
[]
[]
[]
[]
[]
[]
[]
[]
[]
[]
[]
[]
[]
[]
[]
[]
[]
[]
["14. DALIS","KONSERVUOTI SVOGŪNĖLIAI"]
[]
["Tiekėjo pasiūlymas:"]
["Nr.","Pavadinimas","Kiekis","Mato vienetas","Kaina su PVM","Suma su PVM","Gamintojas","Kilmės šalis","Prekės pavadinimas"]
["14.","Konservuoti svogūnėliai"]
["14.1.","Konservuoti svogūnėliai",3480,"kg",2.98,{"$f":"IF(ISBLANK(E193),\"\", PRODUCT(C193,E193))","v":10370.4},"Wasta Konserven Fischl GmbH & Co.\nGlobal Green Europe Kft.\nPagaminta pagal UAB \"Sanitex\" užsakymą/Pardavėjas UAB \"Sanitex\"","Vengrija;\nVokietija","Marinuoti svogūnėliai"]
[null,null,null,null,"Suma be PVM",{"$f":"IF(OR(F195=\"\",F195=\"Tiekėjo text\"), \"\", F196-F195)","v":8570.5785123966944}]
[null,null,"Taikomas PVM dydis (%)",21,"PVM suma",{"$f":"IF(OR(F196=\"\", D195=\"\"), \"\", PRODUCT(D195,F196)/100/SUM(1, D195/100))","v":1799.821487603306},{"$f":"IF(D195=\"\", \"Nurodykite taikomą PVM dydį\", \"\")","v":""}]
[null,null,null,null,"Suma su PVM",{"$f":"IF((SUMPRODUCT(--(F193:F193=\"\"))>0), \"\", SUM(F193:F193))","v":10370.4},{"$f":"IF((SUMPRODUCT(--(F193:F193=\"\"))>0), \"Neužpildytos visų objektų kainos\", \"\")","v":""}]
[]
[]
[]
["15. DALIS","KONSERVUOTI ČESNAKAI"]
[]
["Tiekėjo pasiūlymas:"]
["Nr.","Pavadinimas","Kiekis","Mato vienetas","Kaina su PVM","Suma su PVM","Gamintojas","Kilmės šalis","Prekės pavadinimas"]
["15.","Konservuoti česnakai"]
["15.1.","Konservuoti česnakai",1359,"kg",5.08,{"$f":"IF(ISBLANK(E205),\"\", PRODUCT(C205,E205))","v":6903.72},"Greek Trade Sp.z o.o., pagaminta pagal UAB \"Sanitex\" užsakymą/Pardavėjas UAB \"Sanitex\"","Lenkija","Česnakai acte"]
[null,null,null,null,"Suma be PVM",{"$f":"IF(OR(F207=\"\",F207=\"Tiekėjo text\"), \"\", F208-F207)","v":5705.553719008265}]
[null,null,"Taikomas PVM dydis (%)",21,"PVM suma",{"$f":"IF(OR(F208=\"\", D207=\"\"), \"\", PRODUCT(D207,F208)/100/SUM(1, D207/100))","v":1198.1662809917354},{"$f":"IF(D207=\"\", \"Nurodykite taikomą PVM dydį\", \"\")","v":""}]
[null,null,null,null,"Suma su PVM",{"$f":"IF((SUMPRODUCT(--(F205:F205=\"\"))>0), \"\", SUM(F205:F205))","v":6903.72},{"$f":"IF((SUMPRODUCT(--(F205:F205=\"\"))>0), \"Neužpildytos visų objektų kainos\", \"\")","v":""}]
[]
[]
[]
["16. DALIS","KONSERVUOTI ŽIRNELIAI SU MORKOMIS"]
[]
["Tiekėjo pasiūlymas:"]
["Nr.","Pavadinimas","Kiekis","Mato vienetas","Kaina su PVM","Suma su PVM","Gamintojas","Kilmės šalis","Prekės pavadinimas"]
["16.","Konservuoti žirneliai su morkomis"]
["16.1.","Konservuoti žirneliai su morkomis",965,"kg",3.17,{"$f":"IF(ISBLANK(E217),\"\", PRODUCT(C217,E217))","v":3059.0499999999997},"Bonduelle Polska S.A. ","Lenkija","Žirneliai su morkomis kubeliais "]
[null,null,null,null,"Suma be PVM",{"$f":"IF(OR(F219=\"\",F219=\"Tiekėjo text\"), \"\", F220-F219)","v":2528.1404958677685}]
[null,null,"Taikomas PVM dydis (%)",21,"PVM suma",{"$f":"IF(OR(F220=\"\", D219=\"\"), \"\", PRODUCT(D219,F220)/100/SUM(1, D219/100))","v":530.9095041322314},{"$f":"IF(D219=\"\", \"Nurodykite taikomą PVM dydį\", \"\")","v":""}]
[null,null,null,null,"Suma su PVM",{"$f":"IF((SUMPRODUCT(--(F217:F217=\"\"))>0), \"\", SUM(F217:F217))","v":3059.0499999999997},{"$f":"IF((SUMPRODUCT(--(F217:F217=\"\"))>0), \"Neužpildytos visų objektų kainos\", \"\")","v":""}]
[]
[]
[]
[]
[]
[]
[]
[]
[]
[]
[]
[]
[]
[]
[]
[]
[]
[]
[]
[]
[]
[]
[]
[]
[]
[]
[]
[]
[]
[]
[]
[]
[]
[]
[]
[]
[]
[]
[]
[]
[]
[]
[]
[]
[]
[]
[]
[]
[]
[]
[]
["21. DALIS","VIŠTIENOS ŠLAUNELIŲ KONSERVAI"]
[]
["Tiekėjo pasiūlymas:"]
["Nr.","Pavadinimas","Kiekis","Mato vienetas","Kaina su PVM","Suma su PVM","Gamintojas","Kilmės šalis","Prekės pavadinimas"]
["21.","Vištienos šlaunelių konservai"]
["21.1.","Vištienos šlaunelių konservai",3075,"kg",5.32,{"$f":"IF(ISBLANK(E277),\"\", PRODUCT(C277,E277))","v":16359},"SIA \"RITAL D\"","Latvija","Vištienos šlaunelių konservai"]
[null,null,null,null,"Suma be PVM",{"$f":"IF(OR(F279=\"\",F279=\"Tiekėjo text\"), \"\", F280-F279)","v":13519.834710743802}]
[null,null,"Taikomas PVM dydis (%)",21,"PVM suma",{"$f":"IF(OR(F280=\"\", D279=\"\"), \"\", PRODUCT(D279,F280)/100/SUM(1, D279/100))","v":2839.1652892561983},{"$f":"IF(D279=\"\", \"Nurodykite taikomą PVM dydį\", \"\")","v":""}]
[null,null,null,null,"Suma su PVM",{"$f":"IF((SUMPRODUCT(--(F277:F277=\"\"))>0), \"\", SUM(F277:F277))","v":16359},{"$f":"IF((SUMPRODUCT(--(F277:F277=\"\"))>0), \"Neužpildytos visų objektų kainos\", \"\")","v":""}]

{"sheet":"Subtiekėjai ir priedai","index":1,"n_rows":100,"n_cols":11,"rows_kept":100,"cut":false,"hidden":false,"merged":[[47,0,47,9],[52,4,52,9],[50,4,50,9],[52,0,52,3],[50,0,50,3],[38,1,38,6],[37,1,37,6],[36,1,36,6],[35,1,35,6],[43,1,43,6],[42,1,42,6],[41,1,41,6],[40,1,40,6],[39,1,39,6],[32,0,32,9],[34,7,34,9],[34,1,34,6],[45,7,45,9],[42,7,42,9],[37,7,37,9],[36,7,36,9],[35,7,35,9],[44,7,44,9],[43,7,43,9],[41,7,41,9],[40,7,40,9],[39,7,39,9],[38,7,38,9],[45,1,45,6],[44,1,44,6],[1,0,2,10],[30,0,30,9],[14,5,14,7],[8,5,8,7],[7,5,7,7],[6,5,6,7],[14,8,14,9],[8,8,8,9],[7,8,7,9],[6,8,6,9],[14,0,14,1],[8,0,8,1],[7,0,7,1],[6,0,6,1],[14,2,14,4],[8,2,8,4],[7,2,7,4],[9,8,9,9],[6,2,6,4],[5,2,5,4],[5,8,5,9],[4,8,4,9],[4,5,4,7],[4,2,4,4],[4,0,4,1],[5,5,5,7],[5,0,5,1],[9,0,9,1],[13,2,13,4],[12,2,12,4],[11,2,11,4],[10,2,10,4],[9,2,9,4],[13,5,13,7],[12,5,12,7],[11,5,11,7],[10,5,10,7],[9,5,9,7],[16,0,16,10],[18,8,18,9],[18,5,18,7],[18,2,18,4],[18,0,18,1],[13,0,13,1],[12,0,12,1],[11,0,11,1],[10,0,10,1],[13,8,13,9],[12,8,12,9],[11,8,11,9],[10,8,10,9],[23,8,23,9],[22,8,22,9],[21,8,21,9],[20,8,20,9],[19,8,19,9],[28,8,28,9],[27,8,27,9],[26,8,26,9],[25,8,25,9],[24,8,24,9],[23,5,23,7],[22,5,22,7],[21,5,21,7],[20,5,20,7],[19,5,19,7],[28,5,28,7],[27,5,27,7],[26,5,26,7],[25,5,25,7],[24,5,24,7],[23,2,23,4],[22,2,22,4],[21,2,21,4],[20,2,20,4],[19,2,19,4],[28,2,28,4],[27,2,27,4],[26,2,26,4],[25,2,25,4],[24,2,24,4],[23,0,23,1],[22,0,22,1],[21,0,21,1],[20,0,20,1],[19,0,19,1],[28,0,28,1],[27,0,27,1],[26,0,26,1],[25,0,25,1],[24,0,24,1]]}
[]
["Ūkio subjektai (įskaitant kvazisubtiekėjus - fiziniai asmenys, kuriuos ketinama įdarbinti pirkimo laimėjimo atveju), kurių pajėgumais tiekėjas remiasi, kad atitiktų keliamus kvalifikacijos reikalavimus:"]
[]
[]
["Pavadinimas*",null,"Kodas, adresas",null,null,"Perduodami įsipareigojimai",null,null,"Perduodamų įsipareigojimų dalis nuo visos pirkimo sutarties (Eur arba %)",null,"Kval. Reikalavimo Nr."]
[]
[]
[]
[]
[]
[]
[]
[]
[]
[]
[]
["Subtiekėjams / subteikėjams / subrangovams numatomos perduoti veiklos (privaloma nurodyti) ir šių ūkio subjektų pavadinimai (jei žinomi):"]
[]
["Pavadinimas",null,"Kodas, adresas",null,null,"Perduodama veikla*",null,null,"Perduodamos veiklos dalis nuo visos pirkimo sutarties (Eur arba %)"]
[]
[]
[]
[]
[]
[]
[]
[]
[]
[]
[]
[]
[]
["Kartu su pasiūlymu pateikiami šie dokumentai:"]
[]
["Nr.","Dokumento  pavadinimas",null,null,null,null,null,"Dokumentas yra konfidencialus? Taip/Ne"]
["1","Jungtinės veiklos kopija (jei taikoma)"]
["2","Europos bendrasis viešųjų pirkimų dokumentas",null,null,null,null,null,"Ne"]
["3","Subtiekimo sutartis, ketinimų protokolas, preliminarios sutartys ar kiti dokumentai, patvirtinantys, kad laimėjus pirkimą tiekėjui bus prieinami kitų ūkio subjektų ištekliai (jei pasitelkiami kvalifikacijos atitikimui)"]
["4","Pasiūlymo atitikimą pirkimo sąlygų techninei specifikacijai pagrindžiantys dokumentai",null,null,null,null,null,"Ne"]
[5,"Įgaliojimas",null,null,null,null,null,"Taip"]
[]
[]
[]
[]
[]
[]
[]
["Pasiūlyme nurodyta Prekės kaina, išskyrus jos sudedamąsias dalis, subtiekėjai, taip pat kita informacija, kuri teisės aktų nustatyta tvarka turi būti skelbiama arba kitokiu būdu viešai prieinama visuomenei, nėra laikoma konfidencialia informacija. Konfidencialią informaciją sudaro, visų pirma, komercinė (gamybinė) paslaptis ir konfidencialieji pasiūlymų aspektai. Informacija, kurią viešai skelbti įpareigoja Lietuvos Respublikos įstatymai, negali būti tiekėjo nurodoma kaip konfidenciali, todėl, tiekėjui nurodžius tokią informaciją kaip konfidencialią, perkančioji organizacija turi teisę ją skelbti. Jei tiekėjas nenurodo konfidencialios informacijos, laikoma, kad konfidencialios informacijos tiekėjo pasiūlyme nėra. Vadovaujantis Informacijos viešinimo Centrinėje viešųjų pirkimų informacinėje sistemoje tvarkos aprašu, patvirtintu Viešųjų pirkimų tarnybos direktoriaus 2017 m. birželio 19 d. įsakymu Nr. 1S-91 „Dėl Informacijos viešinimo Centrinėje viešųjų pirkimų informacinėje sistemoje tvarkos aprašo patvirtinimo“, perkančioji organizacija laimėjusio dalyvio pasiūlymą, išskyrus informaciją, kurią tiekėjas nurodė kaip konfidencialią, paskelbs CVP IS."]
[]
[]
["Tiekėjo arba jo įgalioto asmens pareigų pavadinimas:",null,null,null,"Įgaliotas asmuo"]
[]
["Pasirašančio asmens vardas ir pavardė:",null,null,null,"Živilė Šukaitienė"]
[]
[]
[]
[]
[]
[]
[]
[]
[]
[]
[]
[]
[]
[]
[]
[]
[]
[]
[]
[]
[]
[]
[]
[]
[]
[]
[]
[]
[]
[]
[]
[]
[]
[]
[]
[]
[]
[]
[]
[]
[]
[]
[]
[]
[]
[]
["2115-2236-2237-2238-2239-2240-2242-2243-2229-2230-2231-2232-2234-2235 2022-10-13 14:33:33"]